Cogmind - Beta 14 @@@ ROGUE MODE // 2024.08.08 @ 22:19:26 Player: TheProctologist Result: Self-destructed Performance ------------- Evolutions (1) 500 Regions Visited (2) 400 Robots Destroyed (35) 175 Value Destroyed (618) 618 Prototype IDs (2) 40 Alien Tech Used (0) 0 Bonus (0) 0 TOTAL SCORE: 1733 Bonus ------- None Cogmind --------- Core Integrity 218/400 Matter 177/300 Energy 250/250 System Corruption 0% Temperature Cool (5) Movement Treading (320) Ox2 Location -9/Materials Parts ------- > --- POWER (1) -------- Ion Engine > --- PROPULSION (3) --- Light Treads Light Treads > --- UTILITY (3) ------ High-capacity Storage Unit Improved Terrain Scanner Light Armor Plating > --- WEAPON (2) ------- Grenade Launcher Flail > --- INVENTORY (20) --- Light Ion Engine Aluminum Leg Aluminum Leg Improved Heat Sink Medium Storage Unit Heavy EM Pulse Gun Beam Rifle Particle Gun Particle Gun Light Assault Rifle Heavy Assault Rifle Peak State ------------ > --- POWER ------------ Light Ion Engine > --- PROPULSION ------- Light Treads Light Treads Light Treads > --- UTILITY ---------- High-capacity Storage Unit Improved Terrain Scanner Light Armor Plating > --- WEAPON ----------- Particle Gun Flail > --- INVENTORY -------- Ion Engine Light Ion Engine Light Treads Aluminum Leg Aluminum Leg Improved Heat Sink Medium Storage Unit Heavy EM Pulse Gun Beam Rifle Particle Gun Assault Rifle Light Assault Rifle Heavy Assault Rifle Grenade Launcher [Rating: 15] Favorites ----------- Power Light Ion Engine Engine Light Ion Engine Propulsion Light Treads Treads Light Treads Utility Improved Terrain Scanner Device Improved Terrain Scanner Storage Small Storage Unit Protection Light Armor Plating Weapon Assault Rifle Energy Gun Particle Gun Ballistic Gun Assault Rifle Launcher Grenade Launcher Impact Weapon Flail Build | -11 -10 -9 ------- Run | Yrd Mat Mat Slots Evolved 2 | . . 2 Power . | . . . Propulsion 1 | . . 1 Utility 1 | . . 1 Weapon . | . . . Parts Attached 32 | 7 6 19 Power 3 | 1 . 2 Engine 3 | 1 . 2 Core . | . . . Reactor . | . . . Propulsion 7 | 2 . 5 Treads 7 | 2 . 5 Leg . | . . . Wheel . | . . . Hover . | . . . Flight . | . . . Utility 5 | 2 1 2 Device 1 | 1 . . Storage 3 | 1 1 1 Processor . | . . . Hackware . | . . . Protection 1 | . . 1 Artifact . | . . . Weapon 17 | 2 5 10 Energy Gun 3 | . 2 1 Energy Cannon . | . . . Ballistic Gun 5 | 2 1 2 Ballistic Cannon . | . . . Launcher 6 | . 2 4 Special Weapon . | . . . Impact Weapon 3 | . . 3 Slashing Weapon . | . . . Piercing Weapon . | . . . Special Melee Weapon . | . . . Unidentified Prototypes . | . . . Parts Lost 5 | . . 5 Power 1 | . . 1 Propulsion 4 | . . 4 Utility . | . . . Weapon . | . . . Highest Loss Streak 3 | . . 3 To Critical Strikes . | . . . Average Slot Usage (%) 94 | . 100 89 Engine 12 | . 14 10 Treads 26 | . 28 25 Device 12 | . 14 11 Storage 12 | . 14 11 Protection 4 | . . 8 Energy Gun 10 | . 12 9 Ballistic Gun 11 | . 15 7 Impact Weapon 2 | . . 4 Peak Build Rating 15 | 9 11 15 Average Rating 10 | 5 9 12 On Entrance 6 | . 9 11 Naked Turns . | . . . Heaviest Build 55 | 12 19 55 Greatest Support 60 | 40 40 60 Greatest Overweight (x) 2 | . . 2 Average Overweight (x) . | . . . Largest Inventory Capacity 20 | 8 10 20 Average Capacity 10 | 7 8 14 Most Carried 14 | 6 10 14 Average Carried 8 | 5 7 11 Final Capacity 20 | 8 10 20 Final Carried 11 | 6 10 11 Class Distribution -------------------- 84% | Mutant 15% | Scavenger-Mutant Dominant Class ---------------- Mutant | -10/Materials Mutant | -9/Materials Resources | -11 -10 -9 ----------- Run | Yrd Mat Mat Matter Collected 588 | 235 45 308 Remotely . | . . . Salvage Created 822 | 184 169 469 Parts 68 | 16 16 36 Haulers Intercepted 2 | . 1 1 Recyclers Shooed . | . . . Parts Field Recycled . | . . . Retrieved Matter . | . . . Parts Self-Destructed . | . . . Prevented . | . . . Kills | -11 -10 -9 ------- Run | Yrd Mat Mat Combat Hostiles Destroyed 25 | . 10 15 Melee 4 | . . 4 Guns 3 | . 1 2 AOE 14 | . 9 5 Classes Destroyed 7 | 2 3 2 Worker 1 | . . 1 Tunneler 5 | 5 . . Hauler 2 | . 1 1 Recycler 2 | 1 1 . Swarmer 15 | . 9 6 Grunt 7 | . 1 6 Sentry 3 | . . 3 Best Kill Streak 7 | 4 7 5 Combat Bots Only 6 | . 6 5 Max Kills in Single Turn 6 | 1 6 2 Gunslinging . | . . . Exploded 5 | . 5 1 Melee 1 | . . 1 Uniques/NPCs Destroyed . | . . . Combat | -11 -10 -9 -------- Run | Yrd Mat Mat Hostile Shots Fired 154 | . 24 130 Missed 42 | . 5 37 Damage Taken 1249 | . 162 1087 Core 218 | . 36 182 Absorbed by Shields . | . . . Core Remaining (%) 92 | 100 85 . Volleys Fired 57 | 17 20 20 Largest 2 | 2 2 2 Hottest 95 | 40 80 95 Shots Fired 104 | 34 38 32 Gun 90 | 34 35 21 Cannon . | . . . Launcher 14 | . 3 11 Special . | . . . Kinetic 60 | 34 18 8 Thermal 30 | . 17 13 Explosive 14 | . 3 11 Electromagnetic . | . . . Robot Hit Streak 8 | 8 8 5 Robot Miss Streak 3 | 1 3 3 Penetration Max . | . . . Secondary Targets . | . . . Shots Hit Robots 82 | 23 23 36 Core Hits 40 | 7 16 17 Critical Kills 3 | 1 . 2 Critical Parts Destroyed 4 | . . 4 Critical Strikes 7 | 1 . 6 Destroy 1 | 1 . . Smash 6 | . . 6 Melee Attacks 33 | . . 33 Impact 33 | . . 33 Slashing . | . . . Piercing . | . . . Sneak Attacks 2 | . . 2 Combat Hostiles 1 | . . 1 Follow-up Attacks . | . . . Damage Inflicted 2109 | 231 811 1067 Guns 629 | 231 274 124 Cannons . | . . . Explosions 862 | . 537 325 Melee 607 | . . 607 Ramming 11 | . . 11 Kinetic 420 | 231 151 38 Thermal 209 | . 123 86 Explosive 862 | . 537 325 Electromagnetic . | . . . Impact 607 | . . 607 Slashing . | . . . Piercing . | . . . Highest Corruption . | . . . Average Corruption . | . . . Corruption Purged . | . . . Corruption Blocked . | . . . Overload Shots . | . . . Overflow Damage 147 | . 43 104 Projectiles . | . . . Explosions 43 | . 43 . Melee 104 | . . 104 Knockbacks . | . . . Impact . | . . . Kinetic . | . . . Secondary . | . . . Self-Inflicted Damage 137 | . . 137 Shots 5 | . . 5 Rammed 2 | . . 2 Targets Rammed 2 | . . 2 Kicked . | . . . Crushed . | . . . Highest Temperature 135 | . 45 135 Average Temperature 32 | . 15 48 Received Heat Transfer 261 | . 12 249 Siege Activations . | . . . Robots Corrupted 4 | . . 4 Combat Hostiles 4 | . . 4 Parts Fried 6 | . . 6 Impact Corruptions 8 | . . 8 Robots Melted . | . . . Combat Hostiles . | . . . Parts Melted . | . . . Heat Transferred 592 | . 370 222 Parts Sabotaged . | . . . Parts Stolen . | . . . Parts Stripped . | . . . Power Chain Reactions . | . . . Alert | -11 -10 -9 ------- Run | Yrd Mat Mat Peak Influence 314 | 30 314 305 Initial 19 | . 19 18 Average 169 | 14 177 201 Maximum Alert Level 1 | . 1 1 Low Security (%) 55 | 100 66 33 Level 1 44 | . 33 66 Level 2 . | . . . Level 3 . | . . . Level 4 . | . . . Level 5 . | . . . High Security . | . . . Max Security . | . . . Squads Dispatched 3 | . 1 2 Investigation 1 | . . 1 Extermination . | . . . Reinforcement 2 | . 1 1 Assault . | . . . Garrison . | . . . Intercept . | . . . Searches Triggered . | . . . Construction Impeded . | . . . Haulers Reinforced . | . . . Active Scanning Responses . | . . . Cargo Convoy Interrupts . | . . . Stealth | -11 -10 -9 --------- Run | Yrd Mat Mat Distress Signals 2 | . . 2 Communications Jammed . | . . . Distress Signals . | . . . Times Spotted 50 | . 20 30 Peak Tracking Total 6 | . 6 5 Tactical Retreats 6 | . 1 5 Traps | -11 -10 -9 ------- Run | Yrd Mat Mat Traps Triggered . | . . . Indirectly . | . . . Trap Hack Attempts . | . . . Triggered . | . . . Disarmed . | . . . Reprogrammed . | . . . Reused . | . . . Traps Extracted . | . . . Installed . | . . . Triggered . | . . . Machines | -11 -10 -9 ---------- Run | Yrd Mat Mat Machines Disabled 4 | . 3 1 Max in Single Turn 2 | . 2 1 Machines Repaired . | . . . Machines Dismantled . | . . . Machines Sabotaged . | . . . Overloaded Fab Kills . | . . . Hacking | -11 -10 -9 --------- Run | Yrd Mat Mat Machines Accessed 8 | . 4 4 Terminals 7 | . 4 3 Fabricators . | . . . Repair Stations . | . . . Recycling Units 1 | . . 1 Scanalyzers . | . . . Garrison Access . | . . . Total Hacks 25 | . 10 15 Successful 16 | . 5 11 Failed 9 | . 5 4 Catastrophic 1 | . 1 . Database Lockouts . | . . . Manual 11 | . 8 3 Terminals 20 | . 10 10 Fabricators . | . . . Repair Stations . | . . . Recycling Units 5 | . . 5 Scanalyzers . | . . . Garrison Access . | . . . Terminal Hacks 11 | . 5 6 Prototype ID Bank 1 | . 1 . Terminal Index 1 | . 1 . Alert Level 2 | . . 2 Unreport Threat 1 | . . 1 Locate Traps 2 | . 1 1 Security Status 1 | . . 1 Transport Status 2 | . 2 . Investigation Status 1 | . . 1 Fabricator Hacks . | . . . Repair Station Hacks . | . . . Recycling Unit Hacks 5 | . . 5 Recycle Component 2 | . . 2 Process 1 | . . 1 Retrieve Matter 1 | . . 1 Retrieve Components 1 | . . 1 Scanalyzer . | . . . Garrison Access Hacks . | . . . Unauthorized Hacks . | . . . Terminals . | . . . Fabricators . | . . . Repair Stations . | . . . Recycling Units . | . . . Scanalyzers . | . . . Garrison Access . | . . . Data Cores Recovered . | . . . Used . | . . . Hacking Detections 5 | . 1 4 Full Trace Events 1 | . . 1 Feedback Events . | . . . Feedback Blocked . | . . . Robot Schematics Acquired . | . . . Robots Built . | . . . Authchips . | . . . Time . | . . . Total Robot Build Rating . | . . . Part Schematics Acquired . | . . . Parts Built . | . . . Authchips . | . . . Time . | . . . Total Part Build Rating . | . . . Parts Repaired . | . . . Time . | . . . Parts Recycled 2 | . . 2 Recycled Matter 64 | . . 64 Retrieved Matter 64 | . . 64 Retrieved Components . | . . . Parts Scanalyzed . | . . . Part Schematics Acquired . | . . . Parts Damaged . | . . . Bothacking | -11 -10 -9 ------------ Run | Yrd Mat Mat Used RIF Installer . | . . . Robots Hacked . | . . . Non-combat . | . . . Combat . | . . . Robot Hacks Applied . | . . . Relay Couplers Released . | . . . Fabnet Peak Effective % . | . . . Robots Rewired . | . . . Allies Hacked . | . . . Hacks Repelled . | . . . Allies | -11 -10 -9 -------- Run | Yrd Mat Mat Total Allies . | . . . Largest Group . | . . . Highest-Rated Group . | . . . Highest-Rated Ally . | . . . Total Orders . | . . . Ally Attacks . | . . . Total Damage . | . . . Kills . | . . . Allies Corrupted . | . . . Allies Melted . | . . . Intel | -11 -10 -9 ------- Run | Yrd Mat Mat Robot Analysis Total . | . . . Derelict Logs Recovered . | . . . Drone Launches . | . . . Drone Recoveries . | . . . Exploration | -11 -10 -9 ------------- Run | Yrd Mat Mat Turns Passed 1895 | 217 836 842 Spaces Moved 965 | 99 472 394 Core 6 | 6 . . Treads 959 | 93 472 394 Legs . | . . . Wheels . | . . . Hover . | . . . Flight . | . . . Fastest Speed 50 | 50 160 160 Average Speed 162 | 153 160 167 Slowest Speed 320 | 160 160 320 Overloaded Moves . | . . . Propulsion Burnouts . | . . . Robots Hopped . | . . . Cave-ins Triggered . | . . . Exploration Rate (%) 36 | 5 77 27 Regions Visited 2 Branch Regions . Pre-discovered Areas . | . . . Known Exits Taken . | . . . Unknown Exits Taken 2 | 1 1 . Scrap Searched . | . . . Spaces Dug . | . . . Terrain Destroyed 84 | . 13 71 Melee . | . . . Projectile . | . . . AOE 84 | . 13 71 Terrain Rammed . | . . . Walls Destroyed . | . . . Machines Disabled . | . . . Actions | -11 -10 -9 --------- Run | Yrd Mat Mat Total 1133 | 132 515 486 Wait 13 | 1 4 8 Move 963 | 98 471 394 Hop . | . . . Pick Up 24 | 9 8 7 Fast Attach 10 | 4 1 5 Attach 6 | 3 . 3 Detach 1 | . 1 . Swap 16 | . 5 11 Drop 8 | . 5 3 Fire 57 | 17 20 20 Melee 33 | . . 33 Ram . | . . . Kick . | . . . Crush 2 | . . 2 Escape Stasis . | . . . Rewire . | . . . Trap . | . . . Miscellaneous . | . . . Route ------- -11/Scrapyard -10/Materials (discovered 3 exits: *Mat x2 / [*Min]) -9/Materials History --------- Turn | Location | Event 10 | -11/Scrapyard | Discovered new exit (range 15) 218 | -11/Scrapyard | Entered Materials 293 | -10/Materials | Discovered new exit (range 6) 325 | -10/Materials | Build established: Mutant 533 | -10/Materials | Discovered new exit (range 10) 1010 | -10/Materials | Discovered new exit (range 15) 1054 | -10/Materials | Entered another Materials area 1054 | -9/Materials | Evolved 2 slots: Propulsion x1, Utility x1 1716 | -9/Materials | Lost 3 parts (1p2n) 1896 | -9/Materials | Self-destructed Last Messages --------------- Beam Rifle (19) Flight Unit (9) Flight Unit (8) Corrupted Lgt. Ion Engine (0) Lgt. Ion Engine (12) Lgt. Armor Plating (1) Mining Laser (15) Flight Unit (0) Corrupted Lgt. Assault Rifle (0) Assault Rifle (0) Grenade Launcher (0) >>Retrieve(Matter) Matter ejected: 64 01743_ U-05 Engineer lays Concrete. 01744_ K-01 Serf collects debris. 01744_ U-05 Engineer lays Concrete. 01819_ Connecting with Scanalyzer... 01836_ Lgt. Treads destroyed. 01857_ W-16 Scout sends out distress signal. 01894_ The unstable cave ceiling collapses. Map ----- +----------------------------------------------------+ | ?????????????????????????????????????????????????? | | ?????????????????????????????????????????????????? | | ?????????????????????????????????????????????????? | | ?????????????????????????? ?????????????????????? | | ?????????????????????????? ?????????????????????? | | ????????#????????????????? ?????????????????????? | | ???????????? ????????????? ?????????????????????? | | ????????????????? ???????? ?????????????????????? | | ????????? ???????????????? ?????????????????????? | | ????????? ???????????????? ?????????????????????? | | ?????? ? ??? ???????????# ?????????????????????? | | ????????? ?????""????????# ?????????????????????? | | ????????? ? ??????" ?????# ?????????????????????? | | ????????? ?? ????? ?? ???+ ????????????????????? | | ????????# ???????????????# #?????????????????????? | | ??? ????# #?##?????????? # #?????????????????????? | | ??????? # #?########?????# #??? ?????????????????? | | ?? ?????# #?# #?????# # ????????????????????? | | ????????# #?# ####### # ???? #???#??????????? | | ????????# #?# "" + #??? ?????????????????? | | ????????# ### S"" # ####?????????????????????? | | ????????# #?# "" #??#???#????#????????????? | | ????????# ### ###?? ##########????????? | | ???????##+######### ##? #?????????? | | ???????# ## ## #?????????? | | ?#?????# + Y @ g #?????????? | | ???????# ## ########???#?????????? | | ???????# ### #######??????????????? | | ???????###########?# # # #??????????????? | | ????????????#?????######### # "" #??????????????# | | ???????????????????## ## # Y" #? ????????????? | | ?????????#?????#???# + "" #??? ???????? ?? | | ????????????#?#??#?## # #? ? ?????? ??# | | ????????????#?####### ####### ?????? ???? | | ??????????????# "T" ? ?????##+### | | ??#???????????# %] ##########???????? | | ?????????#????# [ [ ]* [#* #???? ???? | | ??????????????# ^^^ +! ##???????? | | ???????#????###^ [^ #= #????????? ??#### | | ?????????????## ^! #########?#?? ????? ????# | | ??????????#???# #?##???????? ??????????# | | ?????????????## #???????????? ???????#??# | | ????????????#?# ### #?? ? ??? ? ??## | | ??????????????# + #? ???????????# | | ???????#??????####T## ###### #? ???? ??? ?### | | ??????????????#??##?# #????? ?! ?#?????##????#### | | ?????????????? ??? ?#=#?#???????? ##??????????#?# | | ??????????????? ???#=#????###+###???#######????## | | ???????????#??? ?? # ###### #???# ####### | | ??????????#??????"??#[* ##### | +----------------------------------------------------+ Best States ------------- Heat Dissipation 28 Energy Generation 10 Energy Capacity 250 Matter Stores 237 Matter Capacity 300 Sight Range 16 Terrain Scan Range 16 Terrain Scan Density 10 Armor Coverage 150 Evasion (%) 40 Recoil Reduction 3 Item Schematics ----------------- None Robot Schematics ------------------ None Fabricated ------------ Nothing Alien Tech Used ----------------- None Achievements -------------- None Challenges ------------ None Game ------ Seed HybridGuidanceRipper Manual? 0 Play Time 00:27:49 Cumulative 15.9 hours Start 2024.08.08 @ 21:54:01 End 2024.08.08 @ 22:19:26 Sessions 1 Manual Loads 0 Difficulty Rogue Special Mode None Game No. 21 Rogue 21 Adventurer 0 Explorer 0 Win Type - Total 0 Types 0/0/0/0/0/0/0/0/0 Lore% 7 Gallery% 15 Achievement% 13 Wizard Run 0 Options --------- Layout 1 ASCII 0 Keyboard 0 Movement Numpad Keybinds 0 Fullscreen 1 Font 32/SmallcapsGlow Map View 50x40 Zoom Use 16% Tactical HUD 1 Map Filters NONE Filters NONE Steam 1 RUN: f252c338-5cbf-4e1d-8fb8-1b845b65147b